bitfinex-derivatives/quotes_SOLF0:USTF0_20250829
["timestamp","ask_amount","ask_price","bid_price","bid_amount"]
[1756492815899,14.19814812,202.01,201.94,0.03173678]
[1756492816594,7.6,202.01,201.94,0.03173678]
[1756492817098,126.08,202.0,201.94,0.03173678]
[1756492818895,7.6,202.01,201.94,0.03173678]
[1756492819195,458.92,202.02,201.94,0.03173678]
[1756492819398,458.92,202.02,201.94,6.6298849]
[1756492820494,458.92,202.02,201.94,0.03173678]
[1756492820798,332.84,202.02,201.94,0.03173678]
[1756492821395,7.6,202.01,201.94,0.03173678]
[1756492821602,332.84,202.02,201.94,0.03173678]
[1756492821802,126.06,202.03,201.94,0.03173678]
[1756492822405,7.6,201.98,201.94,0.03173678]
[1756492822603,6.59814812,201.96,201.94,0.03173678]
[1756492822800,133.66,201.95,201.94,0.03173678]
[1756492825898,7.6,201.95,201.94,0.03173678]
[1756492826102,37.48,201.95,201.94,0.03173678]
[1756492826404,65.86,201.95,201.94,0.03173678]
[1756492827000,7.6,201.95,201.94,0.03173678]
[1756492827205,85.22,201.95,201.94,0.03173678]
[1756492828603,7.6,202.01,201.94,0.03173678]
[1756492828798,126.06,202.0,201.94,0.03173678]
[1756492830302,133.66,202.0,201.94,0.03173678]
[1756492831104,126.06,201.99,201.95,7.47]
[1756492831304,115.05849314,202.05,201.94,7.50173678]
[1756492831504,126.06,202.03,201.94,7.50173678]
[1756492831709,107.45849314,202.05,201.95,7.47]
[1756492831908,107.45849314,202.05,201.98,7.47]
[1756492833607,107.45849314,202.05,201.99,0.03200718]
[1756492836707,5.47533922,202.13,201.99,6.6301553]
[1756492836906,133.92,202.12,202.0,7.5]
[1756492837610,133.92,202.12,201.92,4.15029115]
[1756492837611,133.92,202.12,201.97,6.59814812]
[1756492838512,7.9,202.12,201.98,7.5]
[1756492838811,7.9,202.1,201.98,7.5]
[1756492840712,7.9,202.1,202.01,7.5]
[1756492842115,7.9,202.1,202.03,0.03233918]
[1756492843710,133.88,202.1,202.03,0.03233918]
[1756492843910,332.8,202.14,202.04,7.5]
[1756492844109,458.78,202.14,202.04,7.5]
[1756492844520,7.9,202.13,202.04,7.5]
[1756492847111,340.7,202.14,202.03,14.1304873]
[1756492848517,340.7,202.14,202.04,7.5]
[1756492849013,7.9,202.18,202.07,7.5]
[1756492849214,125.94,202.17,202.07,7.5]
[1756492849415,125.94,202.17,202.11,4.11157195]
[1756492851011,7.9,202.18,202.11,4.11157195]
[1756492851211,7.9,202.18,202.12,0.03203008]
[1756492851913,133.82,202.18,202.12,0.03203008]
[1756492853011,7.9,202.18,202.12,0.03203008]
[1756492857018,7.9,202.18,202.12,6.61033894]
[1756492857722,118.84,202.21,202.12,6.61033894]
[1756492857919,118.84,202.21,202.13,7.5]
[1756492859020,118.84,202.21,202.12,0.03203008]
[1756492860415,7.9,202.21,202.12,6.61033894]
[1756492860620,7.9,202.21,202.12,14.11033894]
[1756492861223,7.9,202.21,202.12,7.53203008]
[1756492862911,7.9,202.21,202.12,0.03203008]
[1756492863820,14.47830886,202.21,202.12,0.03203008]
[1756492864024,7.9,202.17,202.01,6.57830886]
[1756492864326,7.9,202.15,202.01,6.57830886]
[1756492864723,14.47830886,202.15,202.01,6.57830886]
[1756492865317,7.9,202.15,202.01,6.57830886]
[1756492865522,133.72,202.15,202.04,6.57830886]
[1756492865719,0.03256864,202.1,202.02,7.5]
[1756492866518,0.03256864,202.1,202.07,6.57830886]
[1756492867023,7.9,202.15,202.07,14.45830886]
[1756492867818,0.03337594,202.13,202.07,14.45830886]
[1756492868721,0.03337594,202.13,202.1,6.57830886]
[1756492868924,0.03337594,202.13,202.11,7.88]
[1756492869420,0.03337594,202.13,202.1,6.57830886]
[1756492870025,0.03337594,202.13,202.1,7.07830886]
[1756492870227,0.03337594,202.13,202.11,0.5]
[1756492870426,0.03337594,202.13,202.12,7.88]
[1756492871725,0.03337594,202.13,202.08,6.57830886]
[1756492871927,0.03337594,202.13,202.09,7.88]
[1756492872129,7.94,202.17,202.09,7.88]
[1756492872733,0.03363175,202.15,202.09,7.88]
[1756492873925,0.03363175,202.15,202.11,6.57830886]
[1756492874127,0.03363175,202.15,202.12,7.88]
[1756492874324,0.03363175,202.15,202.11,6.57830886]
[1756492874925,0.03363175,202.15,202.12,7.88]
[1756492875130,0.03363175,202.15,202.11,6.57830886]
[1756492875328,0.03363175,202.15,202.08,7.88]
[1756492875533,0.03363175,202.15,202.1,6.57830886]
[1756492876027,0.03363175,202.15,202.11,7.88]
[1756492876233,0.03363175,202.15,202.1,6.57830886]
[1756492876434,0.03363175,202.15,202.11,7.88]
[1756492877031,0.03363175,202.15,202.13,6.57830886]
[1756492877232,0.03363175,202.15,202.14,7.88]
[1756492877429,0.03363175,202.15,202.14,11.98946715]
[1756492879843,0.03363175,202.15,202.14,7.88]
[1756492883739,43.38,202.24,202.14,7.88]
[1756492883942,43.38,202.24,202.17,4.10946715]
[1756492885740,7.94,202.23,202.17,4.10946715]
[1756492886043,43.38,202.24,202.18,0.03219794]
[1756492886445,7.94,202.23,202.18,0.03219794]
[1756492886644,43.38,202.24,202.18,0.03219794]
[1756492887144,7.94,202.23,202.18,0.03219794]
[1756492887546,43.38,202.24,202.18,0.03219794]
[1756492888147,7.94,202.23,202.18,0.03219794]
[1756492888543,43.38,202.24,202.18,0.03219794]
[1756492888738,7.94,202.23,202.18,0.03219794]
[1756492889142,43.38,202.24,202.18,0.03219794]
[1756492889443,51.32,202.24,202.18,0.03219794]
[1756492889642,7.94,202.24,202.18,0.03219794]
[1756492890143,4.10946715,202.4,202.2,4.10946715]
[1756492890144,7.94,202.28,202.2,4.10946715]
[1756492890945,7.94,202.28,202.22,0.03153982]
[1756492893049,7.94,202.25,202.22,0.03153982]
[1756492893941,0.86065118,202.28,202.22,0.03153982]
[1756492893942,7.94,202.27,202.22,0.03153982]
[1756492894847,7.94,202.25,202.22,0.03153982]
[1756492895445,125.64,202.26,202.22,0.03153982]
[1756492895646,7.94,202.25,202.22,0.03153982]
[1756492895839,125.64,202.26,202.22,0.03153982]
[1756492896547,7.94,202.25,202.22,0.03153982]
[1756492896744,7.37,202.25,202.22,0.03153982]
[1756492897049,125.64,202.26,202.22,0.03153982]
[1756492897248,7.37,202.25,202.22,0.03153982]
[1756492897450,125.64,202.26,202.22,0.03153982]
[1756492897743,8.23065118,202.28,202.22,0.03153982]
[1756492897946,7.37,202.33,202.23,7.73]
[1756492898145,7.37,202.33,202.24,4.10946715]
[1756492898853,7.37,202.33,202.27,4.10946715]
[1756492899449,7.37,202.33,202.26,0.03212793]
[1756492904450,7.37,202.37,202.26,0.03212793]
[1756492906660,7.37,202.37,202.27,7.73]
[1756492908360,7.37,202.37,202.29,7.73]
[1756492908760,125.62,202.38,202.32,7.73]
[1756492909558,7.37,202.41,202.32,14.29813363]
[1756492911353,7.37,202.43,202.31,0.03419856]
[1756492911756,7.37,202.43,202.28,6.56813363]
[1756492911959,13.93813363,202.43,202.28,6.56813363]
[1756492912164,13.93813363,202.43,202.35,0.03465896]
[1756492912658,6.56813363,202.4,202.35,0.03465896]
[1756492912866,132.85,202.39,202.35,0.03465896]
[1756492913569,125.48,202.39,202.35,0.03465896]
[1756492914057,7.37,202.38,202.35,0.03465896]
[1756492914758,125.48,202.39,202.35,0.03465896]
[1756492914953,7.37,202.38,202.35,0.03465896]
[1756492915154,125.48,202.39,202.35,0.03465896]
[1756492915356,7.37,202.38,202.35,0.03465896]
[1756492916863,125.48,202.39,202.35,0.03465896]
[1756492917069,7.37,202.38,202.35,0.03465896]
[1756492917359,125.48,202.39,202.35,0.03465896]
[1756492917563,7.37,202.43,202.35,0.03465896]
[1756492917962,7.37,202.43,202.34,7.73]
[1756492918360,7.37,202.43,202.37,0.0337347]
[1756492919462,11.47316791,202.43,202.37,0.0337347]
[1756492919658,7.37,202.39,202.37,0.0337347]
[1756492919860,4.10316791,202.4,202.37,0.0337347]
[1756492920262,7.37,202.39,202.37,0.0337347]
[1756492920570,122.41,202.38,202.37,0.0337347]
[1756492920865,122.41,202.38,202.2,7.73]
[1756492921065,7.37,202.32,202.21,4.10316791]
[1756492921261,33.23,202.32,202.2,7.73]
[1756492921466,39.8012991,202.32,202.2,7.73]
[1756492921666,39.8012991,202.32,202.16,6.5712991]
[1756492921870,7.37,202.28,202.15,7.73]
[1756492922062,58.54391485,202.28,202.18,7.73]
[1756492922262,7.40391485,202.28,202.18,7.73]
[1756492922461,7.37,202.28,202.18,7.73]
[1756492922669,0.03253975,202.25,202.18,7.73]
[1756492926076,7.40253975,202.25,202.14,7.73]
[1756492926582,7.37,202.25,202.14,7.73]
[1756492926770,0.0357029,202.22,202.14,7.73]
[1756492927378,0.0357029,202.22,202.17,7.38]
[1756492927674,0.0357029,202.22,202.16,6.5712991]
[1756492927675,0.0357029,202.22,202.19,6.5712991]
[1756492928674,0.0357029,202.22,202.2,7.38]
[1756492929277,0.0357029,202.22,202.19,6.5712991]
[1756492929682,0.0357029,202.22,202.2,7.38]
[1756492929880,0.0357029,202.22,202.16,6.5712991]
[1756492931285,0.0357029,202.22,202.17,7.38]
[1756492931684,0.0357029,202.22,202.16,6.5712991]
[1756492931985,0.0357029,202.22,202.17,7.38]
[1756492932584,0.0357029,202.22,202.16,6.5712991]
[1756492932786,0.0357029,202.22,202.17,7.38]
[1756492933087,0.0357029,202.22,202.16,10.71219115]
[1756492933388,0.0357029,202.22,202.17,7.38]
[1756492933684,0.0357029,202.22,202.16,6.5712991]
[1756492934183,0.0357029,202.22,202.17,7.38]
[1756492934583,0.0357029,202.22,202.16,6.5712991]
[1756492934784,0.0357029,202.22,202.17,7.38]
[1756492935090,0.0357029,202.22,202.12,11.52089205]
[1756492935588,7.6,202.24,202.13,7.38]
[1756492935884,0.03720314,202.19,202.13,7.38]
[1756492937586,0.03720314,202.19,202.1,4.14089205]
[1756492937888,7.6,202.18,202.08,7.38]
[1756492938590,0.03621304,202.15,202.08,7.38]
[1756492939195,7.63621304,202.15,202.04,7.38]
[1756492939791,7.6,202.14,202.0,7.38]
[1756492939998,14.1712991,202.14,202.0,7.38]
[1756492940595,0.03399627,202.09,202.0,7.38]
[1756492946907,0.03399627,202.09,202.03,7.38]
[1756492947406,0.03399627,202.09,202.05,7.38]
[1756492947604,0.03399627,202.09,202.04,4.11406134]
[1756492947802,0.03399627,202.09,202.05,7.38]
[1756492948104,0.03399627,202.09,202.04,4.11406134]
[1756492948304,0.03399627,202.09,202.05,7.38]
[1756492948507,7.63399627,202.09,202.04,11.49406134]
[1756492948698,7.63399627,202.09,202.03,7.38]
[1756492949200,0.03399627,202.09,202.03,7.38]
[1756492954108,0.03399627,202.09,202.06,7.38]
[1756492954703,0.03399627,202.09,202.03,7.38]
[1756492956515,7.6,202.08,201.97,7.38]
[1756492956807,7.6,202.08,201.99,4.11406134]
[1756492957209,0.03746324,202.06,201.99,11.62406134]
[1756492958912,0.03746324,202.06,201.99,7.51]
[1756492959112,0.03746324,202.06,201.99,11.62406134]
[1756492961623,0.03746324,202.06,202.0,0.03436103]
[1756492963418,7.36746324,202.06,202.0,0.03436103]
[1756492965912,0.03746324,202.06,202.0,4.14842237]
[1756492966113,0.03746324,202.06,202.03,4.11406134]
[1756492966917,0.03746324,202.06,202.04,7.51]
[1756492967117,0.03746324,202.06,202.03,4.11406134]
[1756492967710,0.03746324,202.06,202.05,4.11406134]
[1756492967915,0.03746324,202.06,202.05,11.62406134]
[1756492968419,0.03746324,202.06,202.05,7.51]
[1756492971614,7.33,202.19,202.05,8.01]
[1756492971821,7.33,202.19,202.1,4.11406134]
[1756492972119,4.11406134,202.18,202.09,7.51]
[1756492972320,7.33,202.17,202.07,4.11406134]
[1756492972523,7.33,202.17,202.08,7.51]
[1756492972821,7.33,202.17,202.1,0.03190011]
[1756492973720,4.11406134,202.15,202.1,0.03190011]
[1756492974119,4.11406134,202.16,202.1,0.03190011]
[1756492974318,7.33,202.15,202.1,0.03190011]
[1756492975520,7.33,202.16,202.1,0.03190011]
[1756492981320,4.11406134,202.12,202.1,0.03190011]
[1756492981623,7.33,202.11,202.1,0.03190011]
[1756492982623,125.26,202.17,202.1,0.03190011]
[1756492983021,11.44406134,202.16,202.1,0.03190011]
[1756492983925,7.33,202.12,202.1,0.03190011]
[1756492984222,4.11406134,202.13,202.1,0.03190011]
[1756492984417,7.33,202.12,202.1,0.03190011]
[1756492984821,4.11406134,202.13,202.1,0.03190011]
[1756492985320,7.33,202.12,202.1,0.03190011]
[1756492986022,4.11406134,202.13,202.1,0.03190011]
[1756492986219,7.33,202.12,202.1,0.03190011]
[1756492986626,4.11406134,202.13,202.1,0.03190011]
[1756492987024,7.47,202.12,202.1,0.03190011]
[1756492987419,7.47,202.1,202.03,4.14089205]
[1756492987621,7.47,202.07,201.99,4.14089205]
[1756492988220,4.11406134,202.05,201.98,75.16447738]
[1756492988425,7.47,202.04,201.97,7.6]
[1756492989022,7.50515699,202.04,201.97,7.6]
[1756492991320,0.03515699,202.04,201.97,7.6]
[1756492992724,0.03515699,202.04,201.97,11.74089205]
[1756492993219,0.03515699,202.04,201.98,7.6]
[1756492993431,0.03515699,202.04,201.98,11.74089205]
[1756492993729,0.03515699,202.04,202.0,7.6]
[1756492993919,0.03515699,202.04,201.99,4.11406134]
[1756492994730,0.03515699,202.04,202.0,7.6]
[1756492994930,0.03515699,202.04,201.99,4.11406134]
[1756492995832,0.03515699,202.04,202.0,7.6]
[1756492997034,0.03515699,202.04,201.98,7.6]
[1756492999535,0.03515699,202.04,201.98,11.74089205]
[1756492999729,0.03515699,202.04,201.98,4.14089205]
[1756492999937,0.03515699,202.04,202.0,7.6]
[1756493000331,0.03515699,202.04,201.99,4.11406134]
[1756493001130,0.03515699,202.04,202.0,7.6]
[1756493001433,0.03515699,202.04,201.99,4.11406134]
[1756493001633,0.03515699,202.04,202.0,7.6]
[1756493001834,0.03515699,202.04,201.99,4.11406134]
[1756493002234,0.03515699,202.04,202.0,7.6]
[1756493002536,0.03515699,202.04,201.99,4.11406134]
[1756493002739,0.03515699,202.04,202.0,7.6]
[1756493003030,0.03515699,202.04,201.99,4.11406134]
[1756493003228,0.03515699,202.04,202.0,7.6]
[1756493003426,0.03515699,202.04,202.03,7.6]
[1756493011144,7.47,202.12,202.03,8.1]
[1756493011343,7.47,202.12,202.08,7.6]
[1756493012443,7.47,202.18,202.08,7.6356829]
[1756493012846,7.47,202.18,202.1,4.11406134]
[1756493014346,7.47,202.18,202.09,4.11406134]
[1756493014934,7.47,202.18,202.1,7.6]
[1756493017641,332.48,202.2,202.13,7.55]
[1756493017843,7.24,202.21,202.13,7.55]
[1756493018038,11.35406134,202.21,202.1,4.15593966]
[1756493018235,4.11406134,202.21,202.08,15.820001]
[1756493018436,7.24,202.2,202.15,0.03342127]
[1756493020946,4.11406134,202.21,202.15,0.03342127]
[1756493021346,7.24,202.2,202.15,0.03342127]
[1756493021546,4.11406134,202.21,202.15,0.03342127]
[1756493021741,7.24,202.2,202.15,0.03342127]
[1756493021940,4.11406134,202.21,202.15,0.03342127]
[1756493022142,11.35406134,202.21,202.15,0.03342127]
[1756493026650,4.11406134,202.18,202.15,0.03342127]
[1756493026851,7.24,202.17,202.15,0.03342127]
[1756493027347,4.11406134,202.18,202.15,0.03342127]
[1756493027747,7.24,202.17,202.15,0.03342127]
[1756493027950,4.61406134,202.18,202.15,0.03342127]
[1756493028143,7.24,202.17,202.15,0.03342127]
[1756493028647,7.24,202.17,202.07,7.55]
[1756493028854,7.24,202.13,202.04,7.55]
[1756493029954,0.03475583,202.11,202.04,7.55]
[1756493032752,7.24,202.1,202.04,7.55]
[1756493033151,7.24,202.1,202.01,4.11406134]
[1756493033957,7.24,202.1,202.0,7.55]
[1756493034947,7.24,202.1,202.02,7.55]
[1756493035556,29.32,202.15,202.05,7.55]
[1756493035756,0.03575805,202.08,202.05,7.55]
[1756493036853,0.03575805,202.08,202.04,4.11406134]
[1756493039657,0.03575805,202.08,202.05,7.55]
[1756493039857,0.03575805,202.08,202.04,4.11406134]
[1756493040360,0.03575805,202.08,202.05,7.55]
[1756493040662,0.03575805,202.08,202.04,4.11406134]
[1756493041156,0.03575805,202.08,202.05,7.55]
[1756493041861,0.03575805,202.08,202.07,11.66406134]
[1756493043067,7.24,202.22,202.08,7.55]
[1756493043258,7.24,202.22,202.11,11.66406134]
[1756493043560,336.59406134,202.23,202.11,11.66406134]
[1756493043765,7.24,202.22,202.11,11.66406134]
[1756493044060,336.59406134,202.23,202.11,11.66406134]
[1756493044266,7.24,202.22,202.14,0.03190688]
[1756493046960,7.24,202.22,202.14,7.57190688]
[1756493047564,7.24,202.22,202.14,11.68596822]
[1756493049960,7.24,202.22,202.14,7.57190688]
[1756493050165,7.24,202.22,202.14,11.68596822]
[1756493050965,7.24,202.22,202.15,7.54]
[1756493051160,7.4,202.25,202.18,7.54]
[1756493051864,7.4,202.25,202.19,0.03137332]
[1756493052364,103.67243082,202.27,202.2,7.54]
[1756493052765,103.67243082,202.27,202.2,11.65406134]
[1756493053662,103.67243082,202.27,202.2,7.54]
[1756493054264,7.4,202.26,202.2,7.54]
[1756493054765,7.4,202.3,202.23,7.54]
[1756493055465,7.4,202.3,202.24,0.03498761]
[1756493056867,4.11406134,202.28,202.24,0.03498761]
[1756493057066,7.4,202.32,202.24,0.03498761]
[1756493057366,7.4,202.29,202.24,0.03498761]
[1756493059570,4.11406134,202.27,202.24,0.03498761]
[1756493059766,128.85406134,202.27,202.24,0.03498761]
[1756493059973,124.74,202.27,202.24,0.03498761]
[1756493060470,7.4,202.26,202.24,0.03498761]
[1756493060770,124.74,202.27,202.24,0.03498761]
[1756493060972,7.4,202.26,202.24,0.03498761]
[1756493061173,124.74,202.27,202.24,0.03498761]
[1756493061573,7.4,202.26,202.24,0.03498761]
[1756493061977,124.74,202.27,202.24,0.03498761]
[1756493062573,7.4,202.26,202.24,0.03498761]
[1756493062773,124.74,202.27,202.24,0.03498761]
[1756493062972,7.4,202.26,202.24,0.03498761]
[1756493063172,124.74,202.27,202.24,0.03498761]
[1756493063574,7.4,202.26,202.24,0.03498761]
[1756493063877,124.74,202.27,202.24,0.03498761]
[1756493064072,7.4,202.26,202.24,0.03498761]
[1756493064273,124.74,202.27,202.24,0.03498761]
[1756493064769,132.14,202.27,202.24,0.03498761]
[1756493064973,7.4,202.26,202.24,0.03498761]
[1756493065382,7.4,202.34,202.24,7.57498761]
[1756493065578,11.51406134,202.3,202.24,0.03498761]
[1756493070779,7.4,202.26,202.24,0.03498761]
[1756493070981,7.4,202.25,202.24,0.03498761]
[1756493075286,124.64,202.25,202.24,0.03498761]
[1756493075893,132.04,202.25,202.24,0.03498761]
[1756493079998,7.4,202.25,202.24,0.03498761]
[1756493080196,52.8,202.25,202.24,0.03498761]
[1756493083891,89.06,202.27,202.24,0.03498761]
[1756493084296,5.47533922,202.33,202.24,0.03498761]
[1756493084495,7.25,202.29,202.24,0.03498761]
[1756493085895,7.25,202.3,202.24,0.03498761]
[1756493086196,124.56,202.29,202.24,0.03498761]
[1756493086391,7.25,202.28,202.24,0.03498761]
[1756493086598,7.25,202.28,202.24,7.93498761]
[1756493086995,7.25,202.27,202.24,7.93498761]
[1756493087396,124.54,202.28,202.24,7.93498761]
[1756493087595,124.54,202.28,202.25,7.9]
[1756493087889,131.79,202.28,202.24,7.93498761]
[1756493088294,131.79,202.28,202.25,7.9]
[1756493088496,124.52,202.3,202.24,7.93498761]
[1756493088695,131.77,202.3,202.24,7.93498761]
[1756493090894,7.25,202.3,202.24,12.04904895]
[1756493091099,124.52,202.31,202.24,12.04904895]
[1756493091702,124.52,202.31,202.24,7.93498761]
[1756493091902,124.52,202.31,202.24,12.04904895]
[1756493093203,131.77,202.31,202.24,12.04904895]
[1756493093399,4.11406134,202.28,202.24,0.03498761]
[1756493093604,7.25,202.27,202.24,0.03498761]
[1756493093902,7.25,202.25,202.24,0.03498761]
[1756493100602,7.25,202.25,202.12,5.51046004]
[1756493100603,7.75,202.25,202.13,4.14888444]
[1756493100910,7.25,202.19,202.12,12.04888444]
[1756493101104,124.44,202.18,202.12,7.9]
[1756493101700,124.44,202.18,202.12,12.04888444]
[1756493102010,0.03772302,202.17,202.12,8.26294578]
[1756493102405,0.03772302,202.17,202.12,4.11406134]
[1756493102806,0.03772302,202.17,202.13,7.9]
[1756493103009,0.03772302,202.17,202.12,4.11406134]
[1756493103404,0.03772302,202.17,202.13,7.9]
[1756493104312,0.03772302,202.17,202.13,12.01406134]
[1756493104511,0.03772302,202.17,202.14,7.9]
[1756493104705,0.03772302,202.17,202.13,8.26294578]
[1756493106013,0.03772302,202.17,202.1,4.14888444]
[1756493106313,7.25,202.15,202.08,7.9]
[1756493110713,7.25,202.15,202.02,11.54888444]
[1756493110921,4.11406134,202.06,201.97,7.4]
[1756493111112,7.71,202.05,201.97,7.4]
[1756493111519,7.71,202.02,201.91,7.4]
[1756493111719,7.71,202.02,201.91,11.51406134]
[1756493112108,7.71,202.02,201.91,7.4]
[1756493113119,28.73,202.02,201.94,7.4]
[1756493113313,28.73,202.02,201.9,7.4]
[1756493113513,28.73,202.02,201.9,11.51406134]
[1756493114022,7.71,202.0,201.9,7.4]
[1756493114717,41.13,202.0,201.9,11.51406134]
[1756493115510,7.71,202.0,201.9,11.51406134]
[1756493115715,7.71,202.0,201.9,4.11406134]
[1756493115914,7.71,202.0,201.91,4.11406134]
[1756493116116,7.71,202.0,201.91,11.51406134]
[1756493116513,53.88,202.02,201.92,7.4]
[1756493117619,4.11406134,202.03,201.92,7.4]
[1756493117916,7.71,202.04,201.95,7.4]
[1756493119525,7.71,202.04,201.98,7.4]
[1756493122118,7.71,202.04,201.91,7.4]
[1756493122318,7.71,202.04,201.95,4.11406134]
[1756493122718,7.71,202.04,201.94,7.4]
[1756493122923,4.11406134,201.99,201.89,4.11406134]
[1756493123120,7.71,201.98,201.89,4.11406134]
[1756493124321,7.71,201.98,201.9,7.4]
[1756493125928,7.71,202.08,201.93,7.4]
[1756493126125,7.71,202.05,201.93,7.4]
[1756493127225,7.71,202.03,201.93,7.4]
[1756493128023,7.71,202.03,201.94,4.11406134]
[1756493128925,7.71,202.03,201.95,7.4]
[1756493130629,7.71,202.03,201.97,4.11406134]
[1756493131233,7.71,202.02,201.93,4.11406134]
[1756493134634,11.82406134,202.06,201.97,7.4]
[1756493137540,7.71,202.06,201.97,7.4]
[1756493137737,7.71,202.06,201.99,7.78]
[1756493138440,7.71,202.06,201.98,4.11406134]
[1756493139440,7.71,202.06,201.98,11.89406134]
[1756493139842,4.11406134,202.07,201.95,11.89406134]
[1756493140032,7.31,202.06,201.95,11.89406134]
[1756493145839,7.31,202.06,201.98,4.11406134]
[1756493146037,7.31,202.06,201.99,7.78]
[1756493146738,7.31,202.06,201.89,4.10736512]
[1756493146933,7.31,202.06,201.74,13.70394083]
[1756493146934,7.31,202.02,201.9,7.78]
[1756493147136,7.31,202.02,201.91,4.11406134]
[1756493147445,4.11406134,202.0,201.9,7.78]
[1756493147644,7.31,201.99,201.9,7.78]
[1756493148041,7.31,201.99,201.84,71.02480071]
[1756493148241,7.31,201.99,201.87,7.78]
[1756493148747,7.31,201.96,201.87,7.78]
[1756493151249,4.11406134,201.94,201.83,11.89406134]
[1756493151547,7.31,201.93,201.83,11.89406134]
[1756493151743,7.31,201.93,201.84,7.78]
[1756493155444,4.11406134,201.95,201.84,7.78]
[1756493155650,7.31,201.96,201.87,7.78]
[1756493160855,7.31,202.02,201.92,7.78]
[1756493164758,7.31,202.0,201.9,4.11406134]
[1756493165857,7.31,201.97,201.89,7.78]
[1756493167858,4.11406134,201.98,201.85,11.97406134]
[1756493168056,7.75,201.97,201.85,11.97406134]
[1756493168557,4.11406134,201.95,201.85,11.97406134]
[1756493168762,7.75,201.88,201.81,7.86]
[1756493169959,44.58,201.9,201.81,7.86]
[1756493170160,4.11406134,201.9,201.81,7.86]
[1756493170958,7.75,201.91,201.81,7.86]
[1756493171762,4.11406134,201.89,201.81,7.86]
[1756493171963,7.75,201.88,201.81,7.86]
[1756493172361,11.86406134,201.88,201.76,7.86]
[1756493174066,11.86406134,201.88,201.78,4.11406134]
[1756493174267,52.82406134,201.91,201.79,7.86]
[1756493174467,11.86406134,201.91,201.79,7.86]
[1756493175466,340.55,201.96,201.85,7.86]
[1756493175863,7.75,201.94,201.85,7.86]
[1756493177760,332.8,201.96,201.86,7.86]
[1756493178564,332.8,201.96,201.89,4.11406134]
[1756493178760,332.8,201.96,201.89,11.97406134]
[1756493179160,7.75,201.98,201.89,11.97406134]
[1756493179363,7.75,201.98,201.92,11.97406134]
[1756493180159,332.86,202.06,201.92,11.97406134]
[1756493180160,7.75,202.03,201.92,11.97406134]
[1756493180464,132.03,202.03,201.92,11.97406134]
[1756493180662,132.03,202.03,201.93,7.86]
[1756493182064,7.75,202.03,201.95,4.11406134]
[1756493184160,457.14,202.06,201.95,4.11406134]
[1756493186468,4.11406134,202.01,201.9,4.11406134]
[1756493186668,124.24,202.0,201.9,4.11406134]
[1756493187371,4.11406134,202.01,201.9,4.11406134]
[1756493187572,37.55406134,202.01,201.9,4.11406134]
[1756493190168,4.11406134,201.95,201.82,8.26211921]
[1756493190366,4.11406134,201.89,201.78,8.26211921]
[1756493190570,4.11406134,201.89,201.78,4.11406134]
[1756493192376,4.11406134,201.89,201.75,80.13362191]
[1756493193270,6.60038349,201.9,201.75,71.8715027]
[1756493197578,13.06,201.89,201.74,10.74844136]
[1756493197878,5.47533922,201.98,201.75,4.14805787]
[1756493198078,6.60038349,201.92,201.75,4.14805787]
[1756493198273,6.60038349,201.94,201.77,6.60038349]
[1756493198477,7.6,201.93,201.77,6.60038349]
[1756493199576,8.78,201.92,201.77,11.06008349]
[1756493200678,9.38,201.92,201.77,6.60038349]
[1756493200879,6.60038349,201.94,201.77,6.60038349]
[1756493201075,6.60038349,201.94,201.77,11.06008349]
[1756493201275,11.36038349,201.94,201.8,6.60038349]
[1756493201676,6.60038349,201.97,201.8,6.60038349]